{"text_format":"1","workbook":"xlsx","n_sheets":1,"sheets":["závěrečné vyúčtování a zpráva"],"not_rendered":{"charts":0,"images":1,"macros":1,"external_links":0,"defined_names":8,"comments":1,"pivot_tables":0},"unopened":[],"bounds":{"document_bytes":16777216,"sheet_cells":100000,"rows_first":2000,"rows_last":500,"rows_between":2000,"halvings":0,"cell_chars":16384,"cell_head_chars":4096},"cells_cut":0,"cells_raw":0,"read":"whole","date_system":"1900"}

{"sheet":"závěrečné vyúčtování a zpráva","index":0,"n_rows":135,"n_cols":27,"rows_kept":135,"cut":false,"hidden":false,"merged":[[61,3,61,4],[25,0,49,8],[53,7,53,8],[54,7,54,8],[55,7,55,8],[60,3,60,4],[56,7,56,8],[15,0,15,3],[15,4,15,8],[16,0,16,3],[16,4,16,8],[17,0,17,3],[17,5,17,8],[11,0,11,3],[11,4,11,8],[12,0,12,3],[12,4,12,8],[13,0,13,3],[13,4,13,8],[6,0,6,8],[8,0,8,3],[8,4,8,8],[9,0,9,3],[9,4,9,8],[106,0,106,8],[107,0,107,8],[80,1,80,8],[82,1,82,8],[85,0,91,8],[94,0,94,2],[94,7,94,8],[96,7,96,8],[99,0,99,4],[99,6,99,8],[96,0,96,6],[101,0,101,2],[105,0,105,8],[72,9,74,9],[70,3,70,4],[67,3,67,4],[72,0,72,4],[64,3,64,4],[65,3,65,4],[66,3,66,4],[18,5,18,6],[19,5,19,8],[94,3,94,5],[20,5,20,6],[21,5,21,8],[68,3,68,4],[69,3,69,4],[53,0,53,3],[54,0,54,3],[55,0,55,3],[56,0,56,3],[63,3,63,4],[62,3,62,4],[19,0,19,3],[20,0,20,3],[21,0,21,3]]}
[]
[]
[]
[]
[]
[]
["Závěrečné vyúčtování / vypořádání projektu podpořeného \nz Dotačního fondu Libereckého kraje a Závěrečná zpráva o realizaci projektu"]
[]
["Program (název a číslo):",null,null,null,"4.23 Sportovní akce pro rok 2022",null,null,null,null,"Vyplnění žlutých polí je povinné (podbarvení po zadání textu zmizí)."]
["Název projektu:"]
[]
["Název příjemce: "]
["IČO příjemce:"]
["Bankovní spojení příjemce:",null,null,null,null,null,null,null,null,"Zadejte číslo bankovního účtu včetně kódu banky."]
[]
["Smlouva číslo: ",null,null,null,null,null,null,null,null,"Zadejte číslo smlouvy poskytovatele."]
["Termín realizace projektu:"]
["Celková výše způsobilých výdajů vynaložená příjemcem na projekt -",null,null,null,"v Kč:"]
["Schválená výše dotace dle smlouvy - ",null,null,null,"v Kč:",null,null,"v %:",null,"Opište údaje (Kč i %) ze smlouvy."]
["Finanční prostředky doposud vyplacené příjemci z rozpočtu poskytovatele -",null,null,null,"v Kč:",null,null,null,null,"= výše zálohy dotace vyplacené na tento projekt"]
["Výše dotace dle skutečnosti -  ",null,null,null,"v Kč:",{"$f":"IF(F18*I19%>F19,F19,F18*I19%)","v":0},null,"v %:",{"$f":"F21/F18*100","v":{"$error":"#DIV/0!"}}]
["Do rozpočtu poskytovatele bude vráceno -",null,null,null,"v Kč:",{"$f":"IF(G20-F21<0,0,G20-F21)","v":0},null,null,null,"informace pro Vás - bude Vám doplaceno:",{"$f":"F21-F20","v":0}]
[]
["Popis realizace projektu:"]
["(popište činnosti v rámci projektu realizované v termínu realizace projektu - jak byl projekt zrealizován)"]
[null,null,null,null,null,null,null,null,null,"Pro odřádkování použijte levý ALT + ENTER."]
[]
[]
[]
[]
[]
[]
[]
[]
[]
[]
[]
[]
[]
[]
[]
[]
[]
[]
[]
[]
[]
[]
[]
[]
[]
["Splnění závazných parametrů:"]
[]
["parametr",null,null,null,"jednotka","hodnota \ndle smlouvy","dosažená hodnota","dokumenty\ndokládající splnění parametru1"]
[null,null,null,null,null,null,null,null,null,"Zadejte všechny parametry ze smlouvy.",null,null,null,null,null,null,null,null,null,null,null,null,null,null,null,null,{"$f":"H55","v":0}]
[null,null,null,null,null,null,null,null,null,null,null,null,null,null,null,null,null,null,null,null,null,null,null,null,null,null,0]
[]
[" ",null,null,null,null,null,null,null,null,null,null,null,null,null,null,null,null,null,null,null,null,null,null,null,null,null,0]
["Soupis účetních dokladů:",null,null,null,null,null,null,null,null,null,null,null,null,null,null,null,null,null,null,null,null,null,null,null,null,null,0]
[" ",null,null,null,null,null,null,null,null,null,null,null,null,null,null,null,null,null,null,null,null,null,null,null,null,null,0]
["p. č.","č. daňového, příp. účetního dokladu","datum úhrady daného výdaje","účel výdaje",null,"zaúčtováno*","celková \nčástka","z toho hrazeno \nz dotace","z toho hrazeno \nz jiných zdrojů",false,null,null,null,null,null,null,null,null,null,null,null,null,null,null,null,null,"z toho hrazeno \nz dotace"]
[{"$f":"ROW(A62)-ROW($D$61)","v":1},null,null,null,null,null,0,{"$f":"IF($J$61=TRUE,G62*$I$21%,0)","v":0},{"$f":"G62-H62","v":0},"Rozmyslete si, jakým způsobem budete chtít vyúčtovávat výdaje. ",null,null,null,null,null,null,null,null,null,null,null,null,null,null,null,null,{"$f":"H62","v":0}]
[2,null,null,null,null,null,0,0,{"$f":"G63-H63","v":0},"Jestliže U VŠECH DOKLADŮ automatickým poměrem % dle skutečnosti, ",null,null,null,null,null,null,null,null,null,null,null,null,null,null,null,null,0]
[3,null,null,null,null,null,0,0,{"$f":"G64-H64","v":0},"zaškrtněte růžové políčko a vyplňujte pouze celkovou částku (sl. G).",null,null,null,null,null,null,null,null,null,null,null,null,null,null,null,null,0]
[4,null,null,null,null,null,0,0,{"$f":"G65-H65","v":0},null,null,null,null,null,null,null,null,null,null,null,null,null,null,null,null,null,0]
[5,null,null,null,null,null,0,0,{"$f":"G66-H66","v":0},null,null,null,null,null,null,null,null,null,null,null,null,null,null,null,null,null,0]
[6,null,null,null,null,null,0,0,{"$f":"G67-H67","v":0},"Jestliže budete chtít zadávat částky hrazené z dotace dle vlastního uvážení",null,null,null,null,null,null,null,null,null,null,null,null,null,null,null,null,0]
[7,null,null,null,null,null,0,0,{"$f":"G68-H68","v":0},"(poměru), můžete, ale pozor, přepíšete vzorec na automatický přepočet (sl. H).",null,null,null,null,null,null,null,null,null,null,null,null,null,null,null,null,0]
[8,null,null,null,null,null,0,0,{"$f":"G69-H69","v":0}]
[9,null,null,null,null,null,0,0,0]
[10,null,null,null,null,null,0,0,{"$f":"G71-H71","v":0}]
[" ",null,null,null,null,null," "]
["CELKEM:",null,null,null,null,null,{"$f":"SUM(G62:G72)","v":0},{"$f":"SUM(H62:H72)","v":0},{"$f":"SUM(I62:I72)","v":0},"Pozor! Celková částka ze soupisu účetních dokladů SE NEROVNÁ výše uvedené částce způsobilých výdajů vynaložených příjemcem na projekt (v buňce F18)."]
[]
["* uveďte zkratku, jak je zaúčtováno: DDNM (drobný dlouhodobý nehmotný majetek); DDHM (drobný dlouhodobý hmotný majetek), "]
["NM (nákup materiálu), NS (nákup služeb), ON (osobní náklady), OSN (ostatní náklady). "]
[]
["Plátce DPH uvede částky bez DPH."]
["(pro tyto účely je za plátce DPH považována osoba, která uplatňuje nárok odpočtu DPH na vstupu)"]
[" "]
["!","Součástí vyúčtování musí být kopie prvotních daňových dokladů nebo kopie zjednodušených daňových dokladů, příp. kopie účetních dokladů včetně kopií k nim příslušných dokladů o zaplacení (výpisy z bankovního účtu nebo pokladní doklady). "]
[" "]
["!","Všechny doklady musí být označeny pořadovými čísly uvedenými v prvním sloupci soupisu účetních dokladů. \nDoklady o zaplacení pak pořadovými čísly dokladů, ke kterým se platba vztahuje."]
[" "]
["Doplňující informace (fotodokumentace projektu, články, publikace, CD a další):"]
[null,null,null,null,null,null,null,null,null,"Pro odřádkování použijte levý ALT + ENTER."]
[]
[]
[]
[]
[]
[]
[" "]
[" "]
["Zpracoval (jméno a kontakt):",null,null,null,null,null,null,null,null,"Zavináč -@- napíšete pomocí stisku kláves: pravý ALTGr + V."]
[null,null,null,"jméno a příjmení",null,null,"telefon +420 …",null,"e-mail"]
["Podpis zpracovatele:",null,null,null,null,null,null,null,null,"Nezapomeňte vytištěný formulář podepsat."]
[null,null,null,null,null,null,null,null,"podpis"]
[]
["Schválil (jméno a podpis statutárního zástupce příjemce):",null,null,null,null,null,null,null,null,"Nezapomeňte nechat vytištěný formulář podepsat statutárním zástupcem."]
[" ",null,null,null,null,null,"jméno a příjmení",null,"podpis"]
["Datum:"]
[]
[" "]
[]
["[1] Příjemce uvede výčet dokladů přiložených k závěrečné zprávě o realizaci projektu, jimiž je prokazováno splnění závazných parametrů.",null,null,null,null,null,null,null,null,"zpět na buňku A54 - dokumenty k parametrům"]
["Účetní doklady jsou průkazné účetní záznamy, které musí obsahovat náležitosti dle zákona č. 563/1991 Sb., o účetnictví, § 11 Účetní doklady."]
["Běžný daňový doklad musí obsahovat náležitosti daňového dokladu dle zákona č. 235/2004 Sb., o dani z přidané hodnoty, § 29 Náležitosti daňového dokladu."]
[" "]
["Stručný výtah:"]
["Účetní doklady jsou průkazné účetní záznamy, které musí obsahovat:"]
["a)","označení účetního dokladu,"]
["b)","obsah účetního případu a jeho účastníky,"]
["c)","peněžní částku nebo informaci o ceně za měrnou jednotku a vyjádření množství,"]
["d)","okamžik vyhotovení účetního dokladu,"]
["e)","okamžik uskutečnění účetního případu, není-li shodný s okamžikem podle písmene d"]
["f)","podpisový záznam podle § 33a odst. 4 osoby odpovědné za účetní případ a podpisový záznam osoby odpovědné za jeho zaúčtování."]
[" "]
[" "]
["Běžný daňový doklad musí obsahovat"]
["a)","obchodní firmu nebo jméno a příjmení, případně název, dodatek jména a příjmení nebo názvu, sídlo nebo místo podnikání, popřípadě trvalý pobyt nebo místo podnikání plátce, který uskutečňuje zdanitelné plnění,"]
["b)","daňové identifikační číslo plátce, který uskutečňuje zdanitelné plnění,"]
["c)","obchodní firmu nebo jméno a příjmení, případně název, dodatek jména a příjmení nebo názvu, sídlo nebo místo podnikání, popřípadě trvalý pobyt nebo místo podnikání plátce, pro něhož se uskutečňuje zdanitelné plnění,"]
["d)","daňové identifikační číslo plátce, pro něhož se uskutečňuje zdanitelné plnění,"]
["e)","evidenční číslo dokladu,"]
["f)","rozsah a předmět zdanitelného plnění,"]
["g)","datum vystavení dokladu,"]
["h)","datum uskutečnění zdanitelného plnění,"]
["i)","výši ceny bez daně z přidané hodnoty celkem,"]
["j)","základní nebo sníženou sazbu daně, případně sdělení, že se jedná o zdanitelné plnění osvobozené od povinnosti uplatnit daň na výstupu podle § 46 nebo § 47,"]
["k)","výši daně celkem zaokrouhlenou na desetihaléře nahoru, popřípadě uvedenou i v haléřích."]
[" "]
[" "]
[" "]
[" "]